bitfinex-derivatives/quotes_ETHF0:USTF0_20250803
["timestamp","ask_amount","ask_price","bid_price","bid_amount"]
[1754213648250,3.04054411,3461.7,3461.6,2.1006]
[1754213654854,3.04054411,3461.7,3461.6,1.8008]
[1754213657558,3.04054411,3461.7,3461.6,1.098]
[1754213660053,3.04054411,3461.7,3461.6,1.8008]
[1754213660456,3.04054411,3461.7,3461.6,0.7853]
[1754213662058,3.04054411,3461.7,3461.6,1.8008]
[1754213662660,3.04054411,3461.7,3461.6,1.098]
[1754213663164,3.04054411,3461.7,3461.6,1.8008]
[1754213664265,3.04054411,3461.7,3461.6,2.1006]
[1754213669868,3.04054411,3461.7,3461.6,2.67841]
[1754213672963,3.04054411,3461.7,3461.6,2.1006]
[1754213675170,0.4613,3461.4,3461.1,3.2078]
[1754213675468,1.9589,3461.2,3461.1,0.5971]
[1754213675668,2.95414411,3461.2,3461.1,0.2986]
[1754213676071,2.95414411,3461.2,3461.1,0.7419]
[1754213676364,2.95414411,3461.2,3461.1,1.7419]
[1754213680568,2.95414411,3461.2,3461.1,2.0551]
[1754213689380,2.95414411,3461.2,3461.1,2.633]
[1754213691479,2.95414411,3461.2,3461.1,2.0551]
[1754213691777,2.95414411,3461.2,3461.1,1.0404]
[1754213692481,2.95414411,3461.2,3461.1,1.7419]
[1754213693178,2.95414411,3461.2,3461.1,2.0551]
[1754213701785,6.12904411,3461.2,3461.1,1.7675]
[1754213702677,6.11678581,3461.2,3461.1,1.7675]
[1754213703986,5.73725891,3461.2,3461.1,2.0658]
[1754213704391,4.51655891,3461.2,3461.1,2.0658]
[1754213704580,4.19095891,3461.2,3461.1,2.0658]
[1754213705990,5.73725891,3461.2,3461.1,2.0658]
[1754213707994,0.146,3461.1,3461.0,0.4242]
[1754213708189,2.90915891,3461.1,3461.0,0.7297]
[1754213708487,2.90915891,3461.1,3461.0,1.7551]
[1754213708788,2.90915891,3461.1,3461.0,2.0534]
[1754213711390,2.52945891,3461.1,3461.0,2.0534]
[1754213716004,0.98315891,3461.1,3461.0,2.0534]
[1754213717306,2.52945891,3461.1,3461.0,2.0534]
[1754213718409,1.5463,3461.1,3461.0,2.0534]
[1754213719916,2.52956758,3461.1,3461.0,2.0534]
[1754213720209,2.67556758,3461.1,3461.0,2.0534]
[1754213720505,2.52956758,3461.1,3461.0,2.0534]
[1754213721212,1.5463,3461.1,3461.0,2.0534]
[1754213722514,1.6923,3461.1,3461.0,2.0534]
[1754213722718,1.926,3461.1,3461.0,2.0534]
[1754213722907,1.926,3461.1,3461.0,1.028]
[1754213723108,2.90916601,3461.1,3461.0,1.028]
[1754213723513,2.90916601,3461.1,3461.0,1.7551]
[1754213725518,2.90916601,3461.1,3461.0,2.0534]
[1754213725913,2.52946601,3461.1,3461.0,2.0534]
[1754213727818,1.5463,3461.1,3461.0,2.0534]
[1754213729216,2.52946541,3461.1,3461.0,2.0534]
[1754213729716,2.67546541,3461.1,3461.0,2.0534]
[1754213729917,1.5463,3461.1,3461.0,2.0534]
[1754213731016,0.6359,3461.1,3461.0,2.0534]
[1754213731409,1.5463,3461.1,3461.0,2.0534]
[1754213735623,6.0073,3461.6,3461.5,0.57783]
[1754213735825,7.1982392,3461.6,3461.5,2.28963]
[1754213736214,8.1361392,3461.6,3461.5,1.59403]
[1754213736612,6.5676392,3461.6,3461.5,2.58823]
[1754213736913,0.9830392,3461.6,3461.5,2.58823]
[1754213742315,0.9542,3462.0,3461.9,2.28956]
[1754213742616,1.93647275,3462.0,3461.9,2.28956]
[1754213742916,2.87437275,3462.0,3461.9,2.28956]
[1754213748732,2.87437275,3462.0,3461.9,1.59396]
[1754213748925,2.87437275,3462.0,3461.9,1.31376]
[1754213752026,2.87437275,3462.0,3461.9,1.85356]
[1754213752227,1.8921,3462.0,3461.9,2.58816]
[1754213753226,1.7622,3462.0,3461.9,2.58816]
[1754213753822,1.8921,3462.0,3461.9,2.58816]
[1754213755328,2.87240966,3462.0,3461.9,2.58816]
[1754213755622,1.8921,3462.0,3461.9,2.28956]
[1754213755828,1.8921,3462.0,3461.9,1.85356]
[1754213756028,1.8921,3462.0,3461.9,1.59396]
[1754213756230,2.87244442,3462.0,3461.9,1.59396]
[1754213756729,1.8921,3462.0,3461.9,1.59396]
[1754213757030,2.8724422,3462.0,3461.9,1.59396]
[1754213758825,2.8724422,3462.0,3461.9,1.0162]
[1754213759230,2.8724422,3462.0,3461.9,1.7118]
[1754213759629,2.8724422,3462.0,3461.9,2.0104]
[1754213761732,0.581,3461.3,3461.2,1.30678]
[1754213762027,1.5713,3461.3,3461.2,2.54558]
[1754213762920,1.4572,3461.3,3461.2,2.54558]
[1754213763125,1.7538,3461.3,3461.2,2.54558]
[1754213764235,1.4572,3461.3,3461.2,2.54558]
[1754213767334,1.4572,3461.2,3461.1,5.3309]
[1754213767535,1.5692,3461.2,3461.1,5.3309]
[1754213767834,1.5692,3461.2,3461.1,5.7534]
[1754213768035,1.4572,3461.2,3461.1,5.7534]
[1754213768634,1.4572,3461.2,3461.1,3.7857]
[1754213768832,1.7484,3461.2,3461.1,4.7667]
[1754213769038,1.7484,3461.2,3461.1,5.0261]
[1754213769344,1.7484,3461.2,3461.1,4.8691]
[1754213769537,1.7484,3461.2,3461.1,4.4482]
[1754213769837,1.7484,3461.2,3461.1,0.981]
[1754213770636,1.7484,3461.2,3461.1,0.6972]
[1754213773433,1.7484,3461.2,3461.1,0.981]
[1754213773634,1.7484,3461.2,3461.1,1.2404]
[1754213773840,1.7484,3461.2,3461.1,1.6613]
[1754213779446,1.7484,3461.2,3461.1,2.2392]
[1754213781244,1.7484,3461.2,3461.1,1.6613]
[1754213782246,1.7484,3461.2,3461.1,1.9677]
[1754213787340,1.4572,3461.2,3461.1,1.9677]
[1754213788254,0.2988,3461.2,3461.1,1.9677]
[1754213788653,0.2988,3461.2,3461.1,5.1755]
[1754213789347,0.2988,3461.2,3461.1,1.9677]
[1754213790854,0.7623,3461.2,3461.1,1.9677]
[1754213791054,1.4572,3461.2,3461.1,1.9677]
[1754213791958,1.7133,3461.2,3461.1,1.9677]
[1754213794263,1.6148,3461.2,3461.1,1.9677]
[1754213794458,2.59708427,3461.2,3461.1,1.9677]
[1754213795062,2.69558427,3461.2,3461.1,1.9677]
[1754213799555,2.59708427,3461.2,3461.1,1.9677]
[1754213799860,2.43948427,3461.2,3461.1,1.9677]
[1754213805161,5.261,3461.4,3461.3,0.2692]
[1754213805366,7.74966569,3461.4,3461.3,1.983]
[1754213805567,7.84816569,3461.4,3461.3,1.983]
[1754213805961,8.00576569,3461.4,3461.3,1.983]
[1754213807067,7.0227,3461.4,3461.3,1.983]
[1754213807468,6.9242,3461.4,3461.3,1.983]
[1754213807675,6.7666,3461.4,3461.3,1.983]
[1754213807862,5.8602,3461.4,3461.3,1.983]
[1754213808062,6.7666,3461.4,3461.3,1.983]
[1754213808966,7.74949073,3461.4,3461.3,1.983]
[1754213809569,1.5056,3461.4,3461.3,1.983]
[1754213812168,1.5056,3461.3,3461.2,0.57788]
[1754213812373,1.7617,3461.3,3461.2,2.23648]
[1754213812872,1.7617,3461.3,3461.2,2.56088]
[1754213813371,1.7617,3461.7,3461.6,2.2364]
[1754213813669,2.74396125,3461.7,3461.6,2.5608]
[1754213814665,2.74396125,3461.7,3461.6,2.2364]
[1754213814866,2.74396125,3461.7,3461.6,1.8064]
[1754213815268,2.74396125,3461.7,3461.6,2.2364]
[1754213816874,0.98226125,3461.7,3461.6,2.5608]
[1754213817073,2.48786125,3461.7,3461.6,2.5608]
[1754213817672,2.58636125,3461.7,3461.6,2.5608]
[1754213818070,2.74396125,3461.7,3461.6,2.5608]
[1754213824979,2.74396125,3461.7,3461.6,2.2364]
[1754213825471,2.74396125,3461.7,3461.6,1.547]
[1754213827267,2.74396125,3461.7,3461.6,2.2341]
[1754213829677,0.98226125,3461.7,3461.6,2.5499]
[1754213829882,2.43906125,3461.7,3461.6,2.5499]
[1754213830078,2.65546125,3461.7,3461.6,2.5499]
[1754213830486,2.57226125,3461.7,3461.6,2.5499]
[1754213832782,2.43906125,3461.7,3461.6,2.5499]
[1754213833985,2.52226125,3461.7,3461.6,2.5499]
[1754213834790,0.98226125,3461.7,3461.6,2.5499]
[1754213834987,3.943,3462.2,3462.1,0.84303]
[1754213835187,4.92481176,3462.2,3462.1,1.25393]
[1754213835484,2.16561176,3462.2,3462.1,2.52243]
[1754213835675,2.65501176,3462.2,3462.1,2.52243]
[1754213836383,2.65501176,3462.2,3462.1,1.51953]
[1754213836581,2.65501176,3462.2,3462.1,1.77833]
[1754213836784,2.65501176,3462.2,3462.1,2.20613]
[1754213842091,0.7239,3461.9,3461.7,0.5778]
[1754213842387,0.931,3461.7,3461.5,0.57783]
[1754213842589,0.8001,3461.6,3461.5,0.57783]
[1754213842786,1.6549,3461.6,3461.5,0.98873]
[1754213843388,1.6549,3461.6,3461.5,0.4109]
[1754213843593,1.6549,3461.6,3461.3,0.4109]
[1754213843594,0.7239,3461.6,3461.3,0.4109]
[1754213843796,1.6549,3461.5,3461.4,0.4109]
[1754213844796,2.63624249,3461.5,3461.4,0.4109]
[1754213846497,2.63624249,3461.5,3461.4,0.9418]
[1754213846798,2.63624249,3461.5,3461.4,1.6284]
[1754213847297,2.63624249,3461.5,3461.4,0.9418]
[1754213847698,0.602,3461.0,3460.9,1.0092]
[1754213847897,1.6549,3461.0,3460.9,0.6762]
[1754213848095,1.6549,3461.0,3460.9,0.4109]
[1754213849391,1.6549,3461.0,3460.9,0.6762]
[1754213851693,0.7239,3461.0,3460.7,0.57795]
[1754213851898,0.6835,3460.4,3460.3,0.2682]
[1754213852203,1.6417,3460.4,3460.3,0.4094]
[1754213853298,1.6417,3460.4,3460.3,0.6776]
[1754213853496,1.6417,3460.4,3460.3,1.2136]
[1754213853698,1.6417,3460.4,3460.3,1.6226]
[1754213859606,0.6835,3460.1,3460.0,4.421]
[1754213859811,1.6417,3460.1,3460.0,4.421]
[1754213860106,1.6417,3460.1,3460.0,5.1521]
[1754213860304,1.6417,3460.1,3460.0,1.9443]
[1754213861810,1.6417,3460.1,3460.0,0.9566]
[1754213862203,1.6417,3460.1,3460.0,1.6226]
[1754213862713,1.6417,3460.1,3460.0,1.9443]
[1754213867017,1.6417,3460.1,3460.0,2.52238]
[1754213867820,1.4644,3460.1,3460.0,2.52238]
[1754213869419,1.6417,3460.1,3460.0,2.52238]
[1754213869712,0.5744,3459.8,3459.7,1.6761]
[1754213869912,1.6417,3459.8,3459.7,0.6776]
[1754213870308,1.6417,3459.8,3459.7,0.9566]
[1754213870511,1.6417,3459.8,3459.7,2.20073]
[1754213870707,1.6417,3459.8,3459.7,1.6226]
[1754213871110,1.6417,3459.8,3459.7,0.279]
[1754213871319,1.6417,3459.7,3459.6,0.98754]
[1754213871517,1.6417,3459.7,3459.6,2.20074]
[1754213871711,1.6417,3459.7,3459.6,2.52244]
[1754213872616,1.6417,3459.7,3459.6,1.79174]
[1754213872815,1.6417,3459.7,3459.6,2.20074]
[1754213873412,1.6417,3459.7,3459.6,2.52244]
[1754213876818,1.6417,3459.7,3459.6,2.20074]
[1754213878214,1.4644,3459.7,3459.6,2.52244]
[1754213881723,1.6417,3459.7,3459.6,2.52244]
[1754213882425,1.6417,3459.7,3459.6,0.9566]
[1754213882820,0.6655,3459.4,3459.3,4.8162]
[1754213883016,1.6156,3459.4,3459.3,4.8162]
[1754213883923,1.6156,3459.4,3459.3,5.1373]
[1754213884621,1.6156,3459.4,3459.3,1.9295]
[1754213888624,1.4767,3459.6,3459.5,0.8645]
[1754213888922,1.4767,3459.6,3459.5,1.9295]
[1754213889729,1.5301,3459.6,3459.5,1.9295]
[1754213890225,5.261,3459.7,3459.6,0.85375]
[1754213890528,6.1577,3459.7,3459.6,2.50765]
[1754213890726,6.7377,3459.7,3459.6,2.50765]
[1754213894426,7.70315143,3459.7,3459.6,2.50765]
[1754213894731,7.75655143,3459.7,3459.6,2.50765]
[1754213898033,7.70315143,3459.7,3459.6,2.50765]
[1754213899828,7.75655143,3459.7,3459.6,2.50765]
[1754213900028,7.84205143,3459.7,3459.6,2.50765]
[1754213901832,6.80645143,3459.7,3459.6,2.50765]
[1754213902035,7.70315143,3459.7,3459.6,2.50765]
[1754213902936,7.28175143,3459.7,3459.6,2.09785]
[1754213903137,7.70315143,3459.7,3459.6,2.50765]
[1754213903433,7.75655143,3459.7,3459.6,2.50765]
[1754213903937,7.70315143,3459.7,3459.6,2.50765]
[1754213910338,7.74445143,3459.7,3459.6,2.50765]
[1754213911440,7.81055143,3459.7,3459.6,2.50765]
[1754213911738,0.6489,3459.5,3459.4,0.57818]
[1754213911942,2.49705143,3459.5,3459.4,1.21548]
[1754213912140,2.49705143,3459.5,3459.4,1.47648]
[1754213912641,2.49705143,3459.5,3459.4,1.73588]
[1754213914043,2.49705143,3459.5,3459.4,1.47648]
[1754213914449,2.49705143,3459.5,3459.4,2.45008]
[1754213915840,2.39595143,3459.5,3458.8,3.2078]
[1754213916043,2.18365143,3459.4,3459.3,0.2546]
[1754213916243,2.49705143,3459.4,3459.3,0.6373]
[1754213917139,2.49705143,3459.4,3459.3,1.21549]
[1754213920548,2.49705143,3459.4,3459.3,1.47649]
[1754213920845,2.49705143,3459.4,3459.3,2.12449]
[1754213922146,2.39595143,3459.4,3459.3,2.45009]
[1754213922341,0.5867,3459.7,3459.6,2.45005]
[1754213922540,2.01699115,3459.7,3459.6,2.45005]
[1754213922743,2.39739115,3459.7,3459.6,2.45005]
[1754213929349,2.43629115,3459.7,3459.6,2.45005]
[1754213930454,2.49849115,3459.7,3459.6,2.45005]
[1754213935857,2.75949115,3460.0,3459.8,1.0937]
[1754213936056,0.5867,3459.9,3459.8,1.0937]
[1754213936251,0.5867,3459.9,3459.8,1.5813]
[1754213936653,0.5867,3459.9,3459.8,2.3526]
[1754213937855,1.3412,3459.9,3459.8,2.3526]
[1754213939459,1.3412,3459.9,3459.8,2.6782]
[1754213945162,1.0501,3459.9,3459.8,2.6782]
[1754213945460,3.2078,3460.1,3460.0,2.74108]
[1754213945652,3.79917688,3460.3,3460.0,2.74108]
[1754213945858,3.79917688,3460.3,3460.2,1.45335]
[1754213945859,2.75949115,3460.3,3460.2,1.45335]
[1754213946059,3.57159115,3460.3,3460.2,2.74105]
[1754213946759,4.24748573,3460.9,3460.4,0.5807]
[1754213946962,1.31987326,3460.8,3460.7,2.163]
[1754213947456,1.0914,3460.8,3460.7,2.163]
[1754213947963,2.05313564,3460.8,3460.7,2.163]
[1754213951071,5.26093564,3460.8,3460.7,2.163]
[1754213952465,3.2078,3460.8,3460.7,2.163]
[1754213952667,3.527,3461.3,3461.2,2.74088]
[1754213952865,4.98026858,3461.3,3461.2,2.74088]
[1754213953065,1.77246858,3461.3,3461.2,2.74088]
[1754213953268,4.987,3461.7,3461.6,1.97712]
[1754213953570,6.2927327,3461.7,3461.6,2.44322]
[1754213953870,6.2927327,3461.7,3461.6,1.3993]
[1754213954267,5.9467327,3461.7,3461.6,2.163]
[1754213954770,6.2927327,3461.7,3461.6,2.163]
[1754213955266,4.987,3461.7,3461.6,2.163]
[1754213955470,1.7792,3461.7,3461.6,2.163]
[1754213957062,1.3572,3461.7,3461.6,2.163]
[1754213957262,1.2863,3462.0,3461.9,0.8753]
[1754213957559,1.2863,3462.0,3461.9,2.163]
[1754213957963,2.1252,3462.0,3461.9,2.163]
[1754213960968,1.3572,3462.0,3461.9,2.163]
[1754213961273,4.987,3462.1,3462.0,2.74075]
[1754213963970,3.2078,3462.1,3462.0,2.74075]
[1754213964264,4.0199,3462.1,3462.0,2.74075]
[1754213964471,4.7212,3462.1,3462.0,2.74075]
[1754213964672,4.987,3462.1,3462.0,2.74075]
[1754213968776,3.2078,3462.1,3462.0,2.74075]
[1754213969464,0.4929,3462.3,3462.0,2.74075]
[1754213969673,0.8121,3462.3,3462.2,1.45302]
[1754213969871,0.8121,3462.3,3462.2,2.74072]
[1754213970075,0.422,3462.5,3462.2,2.74072]
[1754213970265,1.0914,3462.7,3462.6,2.163]
[1754213970471,1.7792,3462.7,3462.6,2.163]
[1754213970873,2.1252,3462.7,3462.6,2.74065]
[1754213972274,1.7792,3462.7,3462.6,2.74065]
[1754213972480,0.3192,3462.7,3462.6,2.74065]
[1754213972679,24.8536,3463.0,3462.9,1.9064]
[1754213972874,25.5575,3463.0,3462.9,2.8332]
[1754213973074,25.9113,3463.0,3462.9,2.8332]
[1754213973379,2.7647,3463.0,3462.9,2.8332]
[1754213974380,3.71095988,3463.0,3462.9,2.8332]
[1754213974977,2.7647,3463.0,3462.9,2.8332]
[1754213975179,3.71138932,3463.0,3462.9,2.8332]
[1754213982379,3.29268932,3463.0,3462.9,2.8332]
[1754213982583,1.94668932,3463.0,3462.9,2.8332]
[1754213983384,1.0,3463.0,3462.9,2.8332]
[1754213992790,2.7647,3463.0,3462.9,1.5795]
[1754213992986,3.1154,3463.0,3462.9,2.8332]
[1754213993396,2.7647,3463.0,3462.9,2.8332]
[1754213998694,2.7647,3463.0,3462.9,2.3521]
[1754213998893,3.1154,3463.0,3462.9,1.4406]
[1754213999099,3.1154,3463.0,3462.9,2.5063]
[1754213999299,3.1154,3463.0,3462.9,2.8332]
[1754213999798,2.7647,3463.0,3462.9,2.8332]
[1754214001098,3.1154,3463.0,3462.9,2.8332]
[1754214003094,2.7647,3463.0,3462.9,2.8332]
[1754214003692,1.0,3463.0,3462.9,2.8332]
[1754214008000,2.2151,3463.0,3462.9,2.8332]
[1754214008206,2.7833,3463.0,3462.9,2.8332]
[1754214015401,1.7871,3463.0,3462.9,2.8332]
[1754214016407,2.7833,3463.0,3462.9,2.8332]
[1754214018506,3.1217,3463.0,3462.9,2.8332]
[1754214019608,2.7833,3463.0,3462.9,2.8332]
[1754214022211,3.1217,3463.0,3462.9,2.8332]
[1754214023009,2.7833,3463.0,3462.9,0.5776]
[1754214023213,2.1217,3462.8,3462.7,0.6927]
[1754214023411,2.1217,3462.8,3462.7,1.69083]
[1754214023802,2.1217,3462.8,3462.7,0.57763]
[1754214024008,0.8734,3462.8,3462.7,0.4201]
[1754214024507,2.1217,3462.8,3462.7,0.8406]
[1754214024711,2.1217,3462.8,3462.7,2.1852]
[1754214028318,2.1217,3462.8,3462.7,0.6927]
[1754214028520,3.07289291,3462.8,3462.6,3.2078]
[1754214028719,2.1217,3462.7,3462.6,3.6279]
[1754214029114,2.1217,3462.7,3462.6,3.2078]
[1754214029323,2.1217,3462.7,3462.6,3.6279]
[1754214029615,2.1217,3462.7,3462.6,4.0484]
[1754214029816,2.1217,3462.7,3462.6,4.321]
[1754214030712,1.7833,3462.7,3462.6,3.2078]
[1754214030917,2.1076,3462.7,3462.6,3.6279]
[1754214031120,2.1076,3462.7,3462.6,4.0484]
[1754214031615,2.1076,3462.7,3462.6,4.8086]
[1754214032120,2.1076,3462.7,3462.6,5.0869]
[1754214033413,2.1076,3462.7,3462.6,5.393]
[1754214033618,1.7833,3462.7,3462.6,2.1852]
[1754214034025,1.7622,3462.9,3462.8,0.8475]
[1754214034217,2.71256077,3462.9,3462.8,2.1338]
[1754214034523,1.7622,3462.9,3462.8,2.1338]
[1754214034920,1.7622,3462.8,3462.7,2.71143]
[1754214035421,2.0855,3462.8,3462.7,2.71143]
[1754214036121,0.3017,3462.8,3462.7,2.71143]
[1754214036321,1.0,3463.0,3462.7,1.42513]
[1754214036521,1.1933,3462.9,3462.8,0.8475]
[1754214036721,1.1933,3462.9,3462.8,1.2457]
[1754214037025,1.7622,3462.9,3462.8,1.2457]
[1754214037325,1.7622,3462.9,3462.8,2.1338]
[1754214037624,2.71249205,3462.9,3462.8,2.1338]
[1754214046127,3.03579205,3462.9,3462.8,2.1338]
[1754214046331,3.03579205,3462.9,3462.8,1.3528]
[1754214046828,3.03579205,3462.9,3462.8,0.6736]
[1754214047031,3.03579205,3462.9,3462.8,0.3982]
[1754214048940,3.03579205,3462.9,3462.8,1.93042]
[1754214049146,3.03579205,3462.9,3462.8,2.71142]
[1754214050737,2.71249205,3462.9,3462.8,2.71142]
[1754214053638,2.71249205,3462.9,3462.8,2.1338]
[1754214056237,3.02739205,3462.9,3462.8,2.1338]
[1754214057544,2.71249205,3462.9,3462.8,2.1338]
[1754214066549,2.01919205,3462.9,3462.8,2.1338]
[1754214066734,2.41719205,3462.9,3462.8,2.1338]
[1754214068854,2.68919205,3462.9,3462.8,2.1338]
[1754214069647,0.95029205,3462.9,3462.8,2.1338]
[1754214070048,0.95029205,3462.9,3462.8,5.3416]
[1754214070245,4.24748573,3463.6,3463.3,2.03603]
[1754214070450,1.4164,3463.7,3463.6,2.03598]
[1754214070651,2.1032,3463.7,3463.6,2.03598]
[1754214070845,0.8579,3463.9,3463.7,0.4388]
[1754214071051,2.1032,3463.9,3463.8,1.4585]
[1754214071243,2.32761683,3463.9,3463.8,1.4585]
[1754214072763,2.1032,3463.9,3463.8,1.4585]
[1754214077163,2.1032,3463.9,3463.8,1.4013]
[1754214077765,2.1032,3463.9,3463.8,1.3655]
[1754214082166,3.04595458,3463.9,3463.8,1.3655]
[1754214083165,3.04595458,3463.9,3463.8,1.4013]
[1754214084573,3.62338458,3463.9,3463.8,1.4013]
[1754214085562,3.62338458,3463.9,3463.8,0.6762]
[1754214085767,0.8305,3463.3,3462.7,3.2078]
[1754214085972,2.1032,3462.9,3462.8,2.03612]
[1754214087160,2.1032,3462.9,3462.8,1.3655]
[1754214087367,2.1032,3462.9,3462.8,1.4585]
[1754214087666,1.0271,3462.9,3462.8,1.4585]
[1754214087866,0.7669,3462.9,3462.8,1.4585]
[1754214088368,2.1032,3463.4,3463.3,0.6036]
[1754214088564,2.1032,3463.4,3463.3,1.4585]
[1754214090361,2.1032,3463.4,3463.3,1.3655]
[1754214090561,1.7139,3462.8,3462.7,3.2078]
[1754214090767,2.1032,3462.8,3462.7,4.5733]
[1754214090958,2.1032,3462.8,3462.7,4.6091]
[1754214092065,2.1032,3462.8,3462.7,1.3655]
[1754214092868,2.1032,3462.8,3462.7,1.3675]
[1754214100674,2.1032,3462.8,3462.7,1.4034]
[1754214101667,2.1032,3462.8,3462.7,1.4608]
[1754214104179,2.1032,3462.8,3462.7,2.03843]
[1754214104883,2.1032,3462.8,3462.7,1.4034]
[1754214105178,2.1467,3462.5,3462.4,0.9559]
[1754214105376,2.1467,3462.5,3462.4,0.2772]
[1754214105680,1.2808,3462.3,3462.0,1.26885]
[1754214105874,2.1467,3462.1,3462.0,1.26885]
[1754214106075,2.1467,3462.1,3462.0,1.98345]
[1754214106278,2.1467,3462.1,3462.0,2.04085]
[1754214106481,2.1467,3462.1,3462.0,1.4631]
[1754214106685,1.3327,3462.1,3461.9,3.78556]
[1754214106883,0.8659,3462.1,3462.0,0.8211]
[1754214107083,0.8659,3462.1,3462.0,1.4057]
[1754214107477,2.1467,3462.1,3462.0,1.4631]
[1754214108780,2.1467,3462.1,3462.0,1.4057]
[1754214109392,2.1467,3462.1,3462.0,1.3698]
[1754214109980,2.1467,3462.1,3462.0,1.4057]
[1754214111383,2.1467,3462.1,3462.0,1.3698]
[1754214111585,2.1467,3462.1,3462.0,0.5487]
[1754214111987,2.1467,3461.9,3461.8,1.4057]
[1754214114185,2.1467,3461.9,3461.8,1.4631]
[1754214119183,2.1467,3461.9,3461.8,2.04088]
[1754214120187,2.1467,3461.9,3461.8,1.4631]
[1754214121094,2.1467,3461.9,3461.8,2.04088]
[1754214121593,2.1467,3461.9,3461.8,1.4631]
[1754214122293,3.2078,3462.3,3461.6,0.843]
[1754214122592,2.1223,3462.2,3462.1,1.386]
[1754214123187,0.4129,3462.2,3461.5,3.2078]
[1754214123388,1.2541,3461.6,3461.5,0.2805]
[1754214123691,1.2541,3461.6,3460.9,1.386]
[1754214123692,0.8412,3461.0,3460.9,1.386]
[1754214123887,2.1223,3461.0,3460.9,1.386]
[1754214125194,1.3078,3461.0,3460.9,1.4405]
[1754214125395,0.7754,3461.0,3460.9,1.4405]
[1754214125693,2.1223,3461.0,3460.9,1.4405]
[1754214128199,1.7094,3461.0,3460.9,1.4405]
[1754214128499,0.7754,3461.0,3460.9,1.4405]
[1754214129593,2.1223,3461.0,3460.9,1.4405]
[1754214130097,1.3078,3461.0,3460.9,1.4405]
[1754214131203,4.5156,3461.4,3461.3,1.4405]
[1754214131399,2.1223,3461.1,3461.0,1.9639]
[1754214131798,0.8412,3461.1,3460.6,3.2078]
[1754214131994,1.2541,3461.0,3460.9,1.0894]
[1754214132197,0.57793,3460.9,3460.6,0.8089]
[1754214132401,2.1223,3460.7,3460.6,1.0894]
[1754214132598,2.1223,3460.7,3460.6,1.386]
[1754214141906,2.1223,3460.7,3460.6,1.4405]
[1754214144096,3.2078,3461.4,3461.0,0.5975]
[1754214144308,3.2078,3461.4,3460.2,4.65292]
[1754214144309,1.98941887,3461.3,3461.2,1.4405]
[1754214144510,2.40231887,3461.3,3461.2,1.4405]
[1754214144809,0.7754,3461.3,3461.2,1.4405]
[1754214145010,0.5839,3461.5,3461.4,0.5975]
[1754214145207,1.98945228,3461.5,3461.4,1.4405]
[1754214145607,1.0505,3461.5,3461.4,1.4405]
[1754214147008,1.4634,3461.5,3461.4,1.4405]
[1754214147311,8.08959115,3461.8,3461.7,1.4405]
[1754214147609,9.0290638,3461.8,3461.7,1.4405]
[1754214148910,9.0290638,3461.8,3461.7,1.386]
[1754214149311,5.8212638,3461.8,3461.7,1.386]
[1754214150511,4.88179115,3461.8,3461.7,1.386]
[1754214151108,5.82164603,3461.8,3461.7,1.3519]
[1754214151808,5.82164603,3461.8,3461.7,0.543]
[1754214152214,5.82164603,3461.8,3461.7,0.2805]
[1754214152607,5.82164603,3461.8,3461.7,1.0464]
[1754214152809,5.82164603,3461.8,3461.7,1.3165]
[1754214153016,5.82164603,3461.8,3461.7,1.354]
[1754214154715,5.82164603,3461.8,3461.7,0.5506]
[1754214155019,2.101,3461.6,3461.5,1.3316]
[1754214156416,1.2829,3461.4,3461.1,1.2941]
[1754214156617,0.8181,3461.2,3461.1,0.5657]
[1754214156809,2.101,3461.2,3461.1,0.5657]
[1754214157210,2.101,3461.2,3461.1,1.3316]
[1754214157518,2.101,3461.2,3461.1,1.3916]
[1754214157915,2.101,3461.2,3461.1,1.9695]
[1754214161022,1.2744,3461.2,3461.1,1.9695]
[1754214161223,0.7651,3461.2,3461.1,1.9695]
[1754214161524,0.3088,3461.2,3461.1,1.9695]
[1754214161921,0.56,3461.3,3461.2,0.57788]
[1754214162125,1.8429,3461.3,3461.2,1.96948]
[1754214163229,2.101,3461.3,3461.2,1.96948]
[1754214164123,2.101,3461.3,3461.2,1.3916]
[1754214171825,2.101,3461.3,3461.2,1.3316]
[1754214172032,2.101,3461.3,3461.2,1.2941]
[1754214172233,3.04329639,3461.3,3461.2,1.2941]
[1754214174038,3.04329639,3461.3,3461.2,1.90948]
[1754214174234,3.04329639,3461.3,3461.2,1.96948]
[1754214175130,1.2744,3461.3,3461.2,1.96948]
[1754214175433,0.7651,3461.3,3461.2,1.96948]
[1754214177738,0.8181,3461.5,3461.4,1.96945]
[1754214177938,3.04433978,3461.5,3461.4,1.96945]
[1754214181335,2.21773978,3461.5,3461.4,1.96945]
[1754214181539,0.8266,3461.7,3461.6,1.54292]
[1754214181540,2.101,3461.7,3461.6,1.54292]
[1754214181740,3.04424612,3461.7,3461.6,1.96832]
[1754214182438,2.98494612,3461.7,3461.6,1.3197]
[1754214182835,2.98494612,3461.7,3461.6,1.2836]
[1754214184137,2.75949115,3461.8,3461.7,0.5778]
[1754214184440,2.75949115,3461.8,3461.7,1.9552]
[1754214184838,1.0096,3461.8,3461.7,1.9552]
[1754214185039,1.7977,3461.8,3461.7,1.9552]
[1754214186442,1.0096,3461.8,3461.7,1.9552]
[1754214187240,0.7595,3461.8,3461.7,1.9552]
[1754214190145,0.7595,3461.8,3461.7,5.163]
[1754214190834,0.3122,3461.8,3461.7,5.163]
[1754214191041,0.4473,3461.9,3461.8,0.99788]
[1754214191236,0.4473,3461.9,3461.8,1.95368]
[1754214192039,1.257,3461.9,3461.8,1.95368]